Workbook

Sheet CoverSheet
A3: Gas Pipeline Businesses
A4: Price-Quality Regulation 1 October 2022 Reset
A5: Default Price Path Draft Starting Price Adjustment model
A17: Published 10 February 2022 v1

Sheet Table of Contents
A1: Table of Contents
B4: Sheet Name | C4: Link
B5: Inputs | C5: Inputs
C6: Allowable Notional Revenues for 2016 (to be rolled over)
C7: 2017 Draft DPP Reset CPRG and CPI
C8: 2017 Draft DPP Reset Financial Outputs (Draft decision)
C9: 2017 Draft DPP Reset Financial Outputs (2013 WACC 7.44%, cost of debt 5.38%, leverage 44%)
C10: 2017 Draft DPP Reset Operating Expenditure Allowance for 2017
C11: 2013 DPP Operating Expenditure Allowance for 2017
C12: 2017 Final DPP Reset CPRG and CPI
C13: 2017 Final DPP Reset Financial Outputs
C14: 2017 Draft DPP Reset Financial Outputs (using 2017 Final WACC 6.41%, cost of debt 4.76%)
C15: 2017 Draft DPP Reset Financial Outputs (using 2017 Final Opex allowances)
C16: 2017 Draft DPP Reset Financial Outputs (using 2017 Final Capex allowances)
C17: 2017 Draft DPP Reset Financial Outputs (using 2017 Final CPI forecasts)
C18: 2017 Final DPP Reset Financial Outputs (using 2013 WACC, cost of debt, leverage)
B19: Rolled over and Reset Prices | C19: Rolled over and Draft Reset Prices
C20: GasNet
C21: Powerco
C22: Vector
C23: First Gas Distribution
C24: First Gas Transmission
B25: Rolled over and Reset Prices | C25: Rolled over and Final Reset Prices
C26: GasNet
C27: Powerco
C28: Vector
C29: First Gas Distribution
C30: First Gas Transmission
B31: Impact of 2017 Reset | C31: Impact of 2017 Final Reset
C32: i) Final Reset compared to Roll Over
C33: ii) Draft Reset compared to Roll Over
C34: iii) Final Reset compared to Draft Reset
B35: Waterfall Chart for Final | C35: Figures for Waterfall Chart
B36: Reasons Paper Tables | C36: Reasons Paper Tables
C37: Starting prices (net of pass-through and recoverable costs)
C38: Estimated revenue over the regulatory period (net of pass-through and recoverable costs)
C39: Impact of reset on price/revenue cap - WACC scenarios
C40: Impact of reset on price/revenue cap – expenditure scenarios
C41: Changes in starting prices - industry total allowable revenues ($'000s)

Sheet Inputs
A1: Inputs | K1: Notes
A3: Maximum Allowable Revenues for 2022 (to be rolled over)
A5: 2022 maximum allowable revenue (MAR) per the 2017 DPP | B5: MAR ($m) | C5: MAR ($000)
A6: GasNet | B6: =C6/1000 -> 4.383998268 | C6: 4383.998268
A7: Powerco | B7: =C7/1000 -> 51.43556862 | C7: 51435.56862
A8: Vector | B8: 50.7022772 | C8: 50702.2772
A9: First Gas Distribution | B9: 24.64615131 | C9: 24646.15131
A10: First Gas Transmission | B10: 131.6233864 | C10: 131623.3864
A11: Total | B11: 262.7913818 | C11: =SUM(C6:C10) -> 262791.3818
A12: Source: 2017 DPP Financial model, 'Outputs' sheet.
A14: 2022 Draft DPP Reset CPRG and CPI
A16: CPRG (Pricing years) | D16: 2022 | E16: =D16+1 -> 2023 | F16: =E16+1 -> 2024 | G16: 2025 | H16: 2026
A17: GasNet | D17: =[1]Output!$B$3 -> 0.001109051256 | E17: =[1]Output!$B$4 -> 0.0007452748755 | F17: =[1]Output!$B$5 -> 0.0005188765247 | G17: =[1]Output!$B$6 -> 0.0003057413528 | H17: =[1]Output!$B$7 -> 0.0001053972105
A18: Powerco | D18: =[1]Output!$C$3 -> 0.01534142993 | E18: =[1]Output!$C$4 -> 0.01493318336 | F18: =[1]Output!$C$5 -> 0.01427319055 | G18: =[1]Output!$C$6 -> 0.01361786665 | H18: =[1]Output!$C$7 -> 0.01296971087
A19: Vector | D19: =[1]Output!$D$3 -> 0.01378072768 | E19: =[1]Output!$D$4 -> 0.01570962614 | F19: =[1]Output!$D$5 -> 0.01050317518 | G19: =[1]Output!$D$6 -> 0.01032279208 | H19: =[1]Output!$D$7 -> 0.01014377539
A20: First Gas Distribution | D20: =[1]Output!$E$3 -> -0.006621538359 | E20: =[1]Output!$E$4 -> -0.006892505495 | F20: =[1]Output!$E$5 -> -0.007156717435 | G20: =[1]Output!$E$6 -> -0.007413905448 | H20: =[1]Output!$E$7 -> -0.007663666789
A21: First Gas Transmission | D21: 0 | E21: 0 | F21: 0 | G21: 0 | H21: 0 | K21: Note: As the GTB is subject to a revenue cap, the constant price revenue growth figure is unnecessary, hence set at 0
A22: Source: 2022 Draft, Constant price revenue growth Model, 'Output' sheet
A24: CPI Forecasts | B24: =C24-1 -> 2020 | C24: =D24-1 -> 2021 | D24: =D16 -> 2022 | E24: =E16 -> 2023 | F24: 2024 | G24: 2025 | H24: 2026
A25: Forecast changes in CPI used for revaluations, June year-ends | B25: =[2]Output!F8 -> 0.01453488372 | C25: =[2]Output!G8 -> 0.03342884432 | D25: =[2]Output!H8 -> 0.052 | E25: =[2]Output!I8 -> 0.025 | F25: =[2]Output!J8 -> 0.021 | G25: =[2]Output!K8 -> 0.02 | H25: =[2]Output!L8 -> 0.02
A26: Forecast changes in CPI used for revaluations, September year-ends | B26: =[2]Output!F9 -> 0.01443695861 | C26: =[2]Output!G9 -> 0.04933586338 | D26: =[2]Output!H9 -> 0.04 | E26: =[2]Output!I9 -> 0.023 | F26: =[2]Output!J9 -> 0.02 | G26: =[2]Output!K9 -> 0.02 | H26: =[2]Output!L9 -> 0.02
A27: Forecast changes in the CPI element of the price path, lagged | B27: =[2]Output!F10 -> 0.01690701144 | C27: =[2]Output!G10 -> 0.01882640587 | D27: =[2]Output!H10 -> 0.01463882889 | E27: =[2]Output!I10 -> 0.04925236518 | F27: =[2]Output!J10 -> 0.03836140997 | G27: =[2]Output!K10 -> 0.02248782285 | H27: =[2]Output!L10 -> 0.02024771097
A28: Forecast changes in the CPI element of the price path, not lagged | B28: =[2]Output!F11 -> 0.01819505095 | C28: =[2]Output!G11 -> 0.02811532047 | D28: =[2]Output!H11 -> 0.05138887601 | E28: =[2]Output!I11 -> 0.02746210288 | F28: =[2]Output!J11 -> 0.02074756236 | G28: =[2]Output!K11 -> 0.02 | H28: =[2]Output!L11 -> 0.02
A29: Source: 2022 Draft, CPI Model, 'Output' sheet
A31: WACC (67th percentile) | B31: 0.0607
A33: 2022 Draft DPP Reset Financial Outputs (Draft decision)
C34: GasNet | D34: Powerco | E34: Vector | F34: First Gas Distribution | G34: First Gas Transmission
A35: Supplier number | C35: 1 | D35: 2 | E35: 3 | F35: 4 | G35: 5
A36: PV of BBAR at 30 September 2022 | C36: =[3]Outputs!C9 -> 19288.02251 | D36: =[3]Outputs!D9 -> 247968.4458 | E36: =[3]Outputs!E9 -> 230462.7807 | F36: =[3]Outputs!F9 -> 119361.9568 | G36: =[3]Outputs!G9 -> 626669.1958
A37: Starting price for industry-wide X factor | C37: =[3]Outputs!C10 -> 5212.296196 | D37: =[3]Outputs!D10 -> 65707.69495 | E37: =[3]Outputs!E10 -> 61377.28504 | F37: =[3]Outputs!F10 -> 32620.65293 | G37: =[3]Outputs!G10 -> 171803.8482
A38: Starting price for applicable X factor | C38: =[3]Outputs!C11 -> 4838.789014 | D38: =[3]Outputs!D11 -> 58875.07467 | E38: =[3]Outputs!E11 -> 56856.01745 | F38: =[3]Outputs!F11 -> 28249.96793 | G38: =[3]Outputs!G11 -> 148761.8512
A39: PV at 30 September 2022 of MAR (applicable X) | C39: =[3]Outputs!C12 -> 19288.02251 | D39: =[3]Outputs!D12 -> 247968.4458 | E39: =[3]Outputs!E12 -> 230462.7807 | F39: =[3]Outputs!F12 -> 119361.9568 | G39: =[3]Outputs!G12 -> 626669.1958
A40: MAR (industry-wide X factor), pricing period ending 2023 | C40: =[3]Outputs!C13 -> 5212.296196 | D40: =[3]Outputs!D13 -> 65707.69495 | E40: =[3]Outputs!E13 -> 61377.28504 | F40: =[3]Outputs!F13 -> 32620.65293 | G40: =[3]Outputs!G13 -> 171803.8482
A41: MAR (industry-wide X factor), pricing period ending 2024 | C41: =[3]Outputs!C14 -> 5415.055515 | D41: =[3]Outputs!D14 -> 69202.1708 | E41: =[3]Outputs!E14 -> 64401.19054 | F41: =[3]Outputs!F14 -> 33629.61464 | G41: =[3]Outputs!G14 -> 175368.3593
A42: MAR (industry-wide X factor), pricing period ending 2025 | C42: =[3]Outputs!C15 -> 5538.521162 | D42: =[3]Outputs!D15 -> 71721.9551 | E42: =[3]Outputs!E15 -> 66529.18311 | F42: =[3]Outputs!F15 -> 34130.93785 | G42: =[3]Outputs!G15 -> 178875.7264
A43: MAR (industry-wide X factor), pricing period ending 2026 | C43: =[3]Outputs!C16 -> 5651.259102 | D43: =[3]Outputs!D16 -> 74123.20822 | E43: =[3]Outputs!E16 -> 68564.76819 | F43: =[3]Outputs!F16 -> 34555.14693 | G43: =[3]Outputs!G16 -> 182453.241
A44: MAR (applicable X factor), pricing period ending 2023 | C44: =[3]Outputs!C17 -> 4838.789014 | D44: =[3]Outputs!D17 -> 58875.07467 | E44: =[3]Outputs!E17 -> 56856.01745 | F44: =[3]Outputs!F17 -> 28249.96793 | G44: =[3]Outputs!G17 -> 148761.8512
A45: MAR (applicable X factor), pricing period ending 2024 | C45: =[3]Outputs!C18 -> 5284.127747 | D45: =[3]Outputs!D18 -> 66647.73149 | E45: =[3]Outputs!E18 -> 62771.43975 | F45: =[3]Outputs!F18 -> 32036.11807 | G45: =[3]Outputs!G18 -> 167033.1267
A46: MAR (applicable X factor), pricing period ending 2025 | C46: =[3]Outputs!C19 -> 5681.029058 | D46: =[3]Outputs!D19 -> 74245.16702 | E46: =[3]Outputs!E19 -> 68230.69846 | F46: =[3]Outputs!F19 -> 35765.0554 | G46: =[3]Outputs!G19 -> 187411.1682
A47: MAR (applicable X factor), pricing period ending 2026 | C47: =[3]Outputs!C20 -> 6093.140702 | D47: =[3]Outputs!D20 -> 82474.69009 | E47: =[3]Outputs!E20 -> 73989.15549 | F47: =[3]Outputs!F20 -> 39830.53218 | G47: =[3]Outputs!G20 -> 210275.3307
A48: BBAR before tax, for the BBAR period ending 2023 | C48: =[3]Outputs!C21 -> 3776.986434 | D48: =[3]Outputs!D21 -> 65882.1041 | E48: =[3]Outputs!E21 -> 45490.07026 | F48: =[3]Outputs!F21 -> 30847.48545 | G48: =[3]Outputs!G21 -> 166684.3638
A49: BBAR before tax, for the BBAR period ending 2024 | C49: =[3]Outputs!C22 -> 5363.256666 | D49: =[3]Outputs!D22 -> 69649.00803 | E49: =[3]Outputs!E22 -> 64787.59645 | F49: =[3]Outputs!F22 -> 33349.69237 | G49: =[3]Outputs!G22 -> 176165.8429
A50: BBAR before tax, for the BBAR period ending 2025 | C50: =[3]Outputs!C23 -> 5545.134442 | D50: =[3]Outputs!D23 -> 71575.60601 | E50: =[3]Outputs!E23 -> 66067.98336 | F50: =[3]Outputs!F23 -> 34820.13363 | G50: =[3]Outputs!G23 -> 180670.6239
A51: BBAR before tax, for the BBAR period ending 2026 | C51: =[3]Outputs!C24 -> 5684.219097 | D51: =[3]Outputs!D24 -> 73596.86292 | E51: =[3]Outputs!E24 -> 67141.72739 | F51: =[3]Outputs!F24 -> 36269.39439 | G51: =[3]Outputs!G24 -> 185835.5969
A52: ΔD | C52: =[3]Outputs!C25 -> 1.001855153 | D52: =[3]Outputs!D25 -> 1.03050371 | E52: =[3]Outputs!E25 -> 1.029706844 | F52: =[3]Outputs!F25 -> 0.9865315951 | G52: N/A
A53: ANR 2023 (applicable X-factor) | C53: =[3]Outputs!C26 -> 4829.828944 | D53: =[3]Outputs!D26 -> 57132.32676 | E53: =[3]Outputs!E26 -> 55215.73231 | F53: =[3]Outputs!F26 -> 28635.64439 | G53: N/A
A54: Source: 2022 Draft, Financial Model, 'Outputs' sheet
A56: 2022 Draft DPP Reset Financial Outputs (2017 WACC 6.41%, cost of debt 4.76%, leverage 42%)
C57: GasNet | D57: Powerco | E57: Vector | F57: First Gas Distribution | G57: First Gas Transmission
A58: Supplier number | C58: 1 | D58: 2 | E58: 3 | F58: 4 | G58: 5
A59: PV of BBAR at 30 September 2022 | C59: =[4]Outputs!C9 -> 19450.37337 | D59: =[4]Outputs!D9 -> 250967.9112 | E59: =[4]Outputs!E9 -> 233798.2888 | F59: =[4]Outputs!F9 -> 121091.228 | G59: =[4]Outputs!G9 -> 633937.5686
A60: Starting price for industry-wide X factor | C60: =[4]Outputs!C10 -> 5290.802774 | D60: =[4]Outputs!D10 -> 66944.22659 | E60: =[4]Outputs!E10 -> 62678.36821 | F60: =[4]Outputs!F10 -> 33310.27777 | G60: =[4]Outputs!G10 -> 174937.0582
A61: Starting price for applicable X factor | C61: =[4]Outputs!C11 -> 4912.646298 | D61: =[4]Outputs!D11 -> 60000.2746 | E61: =[4]Outputs!E11 -> 58073.03392 | F61: =[4]Outputs!F11 -> 28858.14698 | G61: =[4]Outputs!G11 -> 151532.558
A62: PV at 30 September 2022 of MAR (applicable X) | C62: =[4]Outputs!C12 -> 19450.37337 | D62: =[4]Outputs!D12 -> 250967.9112 | E62: =[4]Outputs!E12 -> 233798.2888 | F62: =[4]Outputs!F12 -> 121091.228 | G62: =[4]Outputs!G12 -> 633937.5686
A63: MAR (industry-wide X factor), pricing period ending 2023 | C63: =[4]Outputs!C13 -> 5290.802774 | D63: =[4]Outputs!D13 -> 66944.22659 | E63: =[4]Outputs!E13 -> 62678.36821 | F63: =[4]Outputs!F13 -> 33310.27777 | G63: =[4]Outputs!G13 -> 174937.0582
A64: MAR (industry-wide X factor), pricing period ending 2024 | C64: =[4]Outputs!C14 -> 5496.616014 | D64: =[4]Outputs!D14 -> 70504.46383 | E64: =[4]Outputs!E14 -> 65766.37482 | F64: =[4]Outputs!F14 -> 34340.56968 | G64: =[4]Outputs!G14 -> 178566.5757
A65: MAR (industry-wide X factor), pricing period ending 2025 | C65: =[4]Outputs!C15 -> 5621.941276 | D65: =[4]Outputs!D15 -> 73071.66713 | E65: =[4]Outputs!E15 -> 67939.47684 | F65: =[4]Outputs!F15 -> 34852.49124 | G65: =[4]Outputs!G15 -> 182137.9073
A66: MAR (industry-wide X factor), pricing period ending 2026 | C66: =[4]Outputs!C16 -> 5736.377252 | D66: =[4]Outputs!D16 -> 75518.10865 | E66: =[4]Outputs!E16 -> 70018.21249 | F66: =[4]Outputs!F16 -> 35285.66841 | G66: =[4]Outputs!G16 -> 185780.6654
A67: MAR (applicable X factor), pricing period ending 2023 | C67: =[4]Outputs!C17 -> 4912.646298 | D67: =[4]Outputs!D17 -> 60000.2746 | E67: =[4]Outputs!E17 -> 58073.03392 | F67: =[4]Outputs!F17 -> 28858.14698 | G67: =[4]Outputs!G17 -> 151532.558
A68: MAR (applicable X factor), pricing period ending 2024 | C68: =[4]Outputs!C18 -> 5364.782498 | D68: =[4]Outputs!D18 -> 67921.47974 | E68: =[4]Outputs!E18 -> 64115.07723 | F68: =[4]Outputs!F18 -> 32725.8072 | G68: =[4]Outputs!G18 -> 170144.1381
A69: MAR (applicable X factor), pricing period ending 2025 | C69: =[4]Outputs!C19 -> 5767.741947 | D69: =[4]Outputs!D19 -> 75664.11481 | E69: =[4]Outputs!E19 -> 69691.19266 | F69: =[4]Outputs!F19 -> 36535.0229 | G69: =[4]Outputs!G19 -> 190901.723
A70: MAR (applicable X factor), pricing period ending 2026 | C70: =[4]Outputs!C20 -> 6186.143893 | D70: =[4]Outputs!D20 -> 84050.91766 | E70: =[4]Outputs!E20 -> 75572.91082 | F70: =[4]Outputs!F20 -> 40688.02325 | G70: =[4]Outputs!G20 -> 214191.7332
A71: BBAR before tax, for the BBAR period ending 2023 | C71: =[4]Outputs!C21 -> 3838.906981 | D71: =[4]Outputs!D21 -> 67192.28599 | E71: =[4]Outputs!E21 -> 46554.96706 | F71: =[4]Outputs!F21 -> 31532.05673 | G71: =[4]Outputs!G21 -> 169897.0326
A72: BBAR before tax, for the BBAR period ending 2024 | C72: =[4]Outputs!C22 -> 5446.248011 | D72: =[4]Outputs!D22 -> 70968.73317 | E72: =[4]Outputs!E22 -> 66192.62481 | F72: =[4]Outputs!F22 -> 34060.53543 | G72: =[4]Outputs!G22 -> 179427.1438
A73: BBAR before tax, for the BBAR period ending 2025 | C73: =[4]Outputs!C23 -> 5627.297658 | D73: =[4]Outputs!D23 -> 72892.07235 | E73: =[4]Outputs!E23 -> 67434.1021 | F73: =[4]Outputs!F23 -> 35549.77768 | G73: =[4]Outputs!G23 -> 183916.6929
A74: BBAR before tax, for the BBAR period ending 2026 | C74: =[4]Outputs!C24 -> 5765.645045 | D74: =[4]Outputs!D24 -> 74916.15594 | E74: =[4]Outputs!E24 -> 68473.71277 | F74: =[4]Outputs!F24 -> 37018.74325 | G74: =[4]Outputs!G24 -> 189065.6737
A75: ΔD | C75: =[4]Outputs!C25 -> 1.001855153 | D75: =[4]Outputs!D25 -> 1.03050371 | E75: =[4]Outputs!E25 -> 1.029706844 | F75: =[4]Outputs!F25 -> 0.9865315951 | G75: N/A
A76: ANR 2022 (applicable X-factor) | C76: =[4]Outputs!C26 -> 4903.549465 | D76: =[4]Outputs!D26 -> 58224.2199 | E76: =[4]Outputs!E26 -> 56397.63809 | F76: =[4]Outputs!F26 -> 29252.12647 | G76: N/A
A77: source: 2022 Draft, Financial Model, 'Outputs' sheet, using 2017 values for WACC (6.41%), cost of debt (4.76%), and leverage (42%)
A79: 2022 Draft DPP Reset Financial Outputs without asset stranding adjustments (Draft decision)
C80: GasNet | D80: Powerco | E80: Vector | F80: First Gas Distribution | G80: First Gas Transmission
A81: Supplier number | C81: 1 | D81: 2 | E81: 3 | F81: 4 | G81: 5
A82: PV of BBAR at 30 September 2022 | C82: =[5]Outputs!C9 -> 16813.98716 | D82: =[5]Outputs!D9 -> 232833.0508 | E82: =[5]Outputs!E9 -> 188256.7181 | F82: =[5]Outputs!F9 -> 112279.5758 | G82: =[5]Outputs!G9 -> 543828.6672
A83: Starting price for industry-wide X factor | C83: =[5]Outputs!C10 -> 4543.725582 | D83: =[5]Outputs!D10 -> 61697.05595 | E83: =[5]Outputs!E10 -> 50136.88637 | F83: =[5]Outputs!F10 -> 30685.09575 | G83: =[5]Outputs!G10 -> 149092.7884
A84: Starting price for applicable X factor | C84: =[5]Outputs!C11 -> 4543.725582 | D84: =[5]Outputs!D11 -> 61697.05595 | E84: =[5]Outputs!E11 -> 50136.88637 | F84: =[5]Outputs!F11 -> 30685.09575 | G84: =[5]Outputs!G11 -> 149092.7884
A85: PV at 30 September 2022 of MAR (applicable X) | C85: =[5]Outputs!C12 -> 16813.98716 | D85: =[5]Outputs!D12 -> 232833.0508 | E85: =[5]Outputs!E12 -> 188256.7181 | F85: =[5]Outputs!F12 -> 112279.5758 | G85: =[5]Outputs!G12 -> 543828.6672
A86: MAR (industry-wide X factor), pricing period ending 2023 | C86: =[5]Outputs!C13 -> 4543.725582 | D86: =[5]Outputs!D13 -> 61697.05595 | E86: =[5]Outputs!E13 -> 50136.88637 | F86: =[5]Outputs!F13 -> 30685.09575 | G86: =[5]Outputs!G13 -> 149092.7884
A87: MAR (industry-wide X factor), pricing period ending 2024 | C87: =[5]Outputs!C14 -> 4720.477376 | D87: =[5]Outputs!D14 -> 64978.23743 | E87: =[5]Outputs!E14 -> 52607.00551 | F87: =[5]Outputs!F14 -> 31634.19039 | G87: =[5]Outputs!G14 -> 152186.1003
A88: MAR (industry-wide X factor), pricing period ending 2025 | C88: =[5]Outputs!C15 -> 4828.106336 | D88: =[5]Outputs!D15 -> 67344.22019 | E88: =[5]Outputs!E15 -> 54345.28575 | F88: =[5]Outputs!F15 -> 32105.76743 | G88: =[5]Outputs!G15 -> 155229.8223
A89: MAR (industry-wide X factor), pricing period ending 2026 | C89: =[5]Outputs!C16 -> 4926.38361 | D89: =[5]Outputs!D16 -> 69598.90662 | E89: =[5]Outputs!E16 -> 56008.08164 | F89: =[5]Outputs!F16 -> 32504.80591 | G89: =[5]Outputs!G16 -> 158334.4188
A90: MAR (applicable X factor), pricing period ending 2023 | C90: =[5]Outputs!C17 -> 4543.725582 | D90: =[5]Outputs!D17 -> 61697.05595 | E90: =[5]Outputs!E17 -> 50136.88637 | F90: =[5]Outputs!F17 -> 30685.09575 | G90: =[5]Outputs!G17 -> 149092.7884
A91: MAR (applicable X factor), pricing period ending 2024 | C91: =[5]Outputs!C18 -> 4720.477376 | D91: =[5]Outputs!D18 -> 64978.23743 | E91: =[5]Outputs!E18 -> 52607.00551 | F91: =[5]Outputs!F18 -> 31634.19039 | G91: =[5]Outputs!G18 -> 152186.1003
A92: MAR (applicable X factor), pricing period ending 2025 | C92: =[5]Outputs!C19 -> 4828.106336 | D92: =[5]Outputs!D19 -> 67344.22019 | E92: =[5]Outputs!E19 -> 54345.28575 | F92: =[5]Outputs!F19 -> 32105.76743 | G92: =[5]Outputs!G19 -> 155229.8223
A93: MAR (applicable X factor), pricing period ending 2026 | C93: =[5]Outputs!C20 -> 4926.38361 | D93: =[5]Outputs!D20 -> 69598.90662 | E93: =[5]Outputs!E20 -> 56008.08164 | F93: =[5]Outputs!F20 -> 32504.80591 | G93: =[5]Outputs!G20 -> 158334.4188
A94: BBAR before tax, for the BBAR period ending 2023 | C94: =[5]Outputs!C21 -> 3276.733988 | D94: =[5]Outputs!D21 -> 61696.78546 | E94: =[5]Outputs!E21 -> 36779.13479 | F94: =[5]Outputs!F21 -> 28937.24039 | G94: =[5]Outputs!G21 -> 143691.8739
A95: BBAR before tax, for the BBAR period ending 2024 | C95: =[5]Outputs!C22 -> 4671.292629 | D95: =[5]Outputs!D22 -> 65393.17866 | E95: =[5]Outputs!E22 -> 52884.84073 | F95: =[5]Outputs!F22 -> 31373.39291 | G95: =[5]Outputs!G22 -> 152793.8213
A96: BBAR before tax, for the BBAR period ending 2025 | C96: =[5]Outputs!C23 -> 4841.745489 | D96: =[5]Outputs!D23 -> 67268.67729 | E96: =[5]Outputs!E23 -> 54113.68764 | F96: =[5]Outputs!F23 -> 32785.3301 | G96: =[5]Outputs!G23 -> 157105.8378
A97: BBAR before tax, for the BBAR period ending 2026 | C97: =[5]Outputs!C24 -> 4969.620967 | D97: =[5]Outputs!D24 -> 69240.04603 | E97: =[5]Outputs!E24 -> 55140.87244 | F97: =[5]Outputs!F24 -> 34176.7149 | G97: =[5]Outputs!G24 -> 162170.5002
A98: ΔD | C98: =[5]Outputs!C25 -> 1.001855153 | D98: =[5]Outputs!D25 -> 1.03050371 | E98: =[5]Outputs!E25 -> 1.029706844 | F98: =[5]Outputs!F25 -> 0.9865315951 | G98: N/A
A99: ANR 2022 (applicable X-factor) | C99: =[5]Outputs!C26 -> 4535.311886 | D99: =[5]Outputs!D26 -> 59870.77521 | E99: =[5]Outputs!E26 -> 48690.44686 | F99: =[5]Outputs!F26 -> 31104.01725 | G99: N/A
A100: source: 2022 Draft, Financial Model, 'Outputs' sheet, using an adjustment factor of 1 in rows 28 & 29 of the inputs sheet, and an alternative X-factor of 0 in row 42 of the inputs sheet
A102: 2022 Draft DPP Reset Financial Outputs, with accelerated depreciation, without smoothing (Draft decision)
C103: GasNet | D103: Powerco | E103: Vector | F103: First Gas Distribution | G103: First Gas Transmission
A104: Supplier number | C104: 1 | D104: 2 | E104: 3 | F104: 4 | G104: 5
A105: PV of BBAR at 30 September 2022 | C105: =[6]Outputs!C9 -> 19288.02251 | D105: =[6]Outputs!D9 -> 247968.4458 | E105: =[6]Outputs!E9 -> 230462.7807 | F105: =[6]Outputs!F9 -> 119361.9568 | G105: =[6]Outputs!G9 -> 626669.1958
A106: Starting price for industry-wide X factor | C106: =[6]Outputs!C10 -> 5212.296196 | D106: =[6]Outputs!D10 -> 65707.69495 | E106: =[6]Outputs!E10 -> 61377.28504 | F106: =[6]Outputs!F10 -> 32620.65293 | G106: =[6]Outputs!G10 -> 171803.8482
A107: Starting price for applicable X factor | C107: =[6]Outputs!C11 -> 5212.296196 | D107: =[6]Outputs!D11 -> 65707.69495 | E107: =[6]Outputs!E11 -> 61377.28504 | F107: =[6]Outputs!F11 -> 32620.65293 | G107: =[6]Outputs!G11 -> 171803.8482
A108: PV at 30 September 2022 of MAR (applicable X) | C108: =[6]Outputs!C12 -> 19288.02251 | D108: =[6]Outputs!D12 -> 247968.4458 | E108: =[6]Outputs!E12 -> 230462.7807 | F108: =[6]Outputs!F12 -> 119361.9568 | G108: =[6]Outputs!G12 -> 626669.1958
A109: MAR (industry-wide X factor), pricing period ending 2023 | C109: =[6]Outputs!C13 -> 5212.296196 | D109: =[6]Outputs!D13 -> 65707.69495 | E109: =[6]Outputs!E13 -> 61377.28504 | F109: =[6]Outputs!F13 -> 32620.65293 | G109: =[6]Outputs!G13 -> 171803.8482
A110: MAR (industry-wide X factor), pricing period ending 2024 | C110: =[6]Outputs!C14 -> 5415.055515 | D110: =[6]Outputs!D14 -> 69202.1708 | E110: =[6]Outputs!E14 -> 64401.19054 | F110: =[6]Outputs!F14 -> 33629.61464 | G110: =[6]Outputs!G14 -> 175368.3593
A111: MAR (industry-wide X factor), pricing period ending 2025 | C111: =[6]Outputs!C15 -> 5538.521162 | D111: =[6]Outputs!D15 -> 71721.9551 | E111: =[6]Outputs!E15 -> 66529.18311 | F111: =[6]Outputs!F15 -> 34130.93785 | G111: =[6]Outputs!G15 -> 178875.7264
A112: MAR (industry-wide X factor), pricing period ending 2026 | C112: =[6]Outputs!C16 -> 5651.259102 | D112: =[6]Outputs!D16 -> 74123.20822 | E112: =[6]Outputs!E16 -> 68564.76819 | F112: =[6]Outputs!F16 -> 34555.14693 | G112: =[6]Outputs!G16 -> 182453.241
A113: MAR (applicable X factor), pricing period ending 2023 | C113: =[6]Outputs!C17 -> 5212.296196 | D113: =[6]Outputs!D17 -> 65707.69495 | E113: =[6]Outputs!E17 -> 61377.28504 | F113: =[6]Outputs!F17 -> 32620.65293 | G113: =[6]Outputs!G17 -> 171803.8482
A114: MAR (applicable X factor), pricing period ending 2024 | C114: =[6]Outputs!C18 -> 5415.055515 | D114: =[6]Outputs!D18 -> 69202.1708 | E114: =[6]Outputs!E18 -> 64401.19054 | F114: =[6]Outputs!F18 -> 33629.61464 | G114: =[6]Outputs!G18 -> 175368.3593
A115: MAR (applicable X factor), pricing period ending 2025 | C115: =[6]Outputs!C19 -> 5538.521162 | D115: =[6]Outputs!D19 -> 71721.9551 | E115: =[6]Outputs!E19 -> 66529.18311 | F115: =[6]Outputs!F19 -> 34130.93785 | G115: =[6]Outputs!G19 -> 178875.7264
A116: MAR (applicable X factor), pricing period ending 2026 | C116: =[6]Outputs!C20 -> 5651.259102 | D116: =[6]Outputs!D20 -> 74123.20822 | E116: =[6]Outputs!E20 -> 68564.76819 | F116: =[6]Outputs!F20 -> 34555.14693 | G116: =[6]Outputs!G20 -> 182453.241
A117: BBAR before tax, for the BBAR period ending 2023 | C117: =[6]Outputs!C21 -> 3776.986434 | D117: =[6]Outputs!D21 -> 65882.1041 | E117: =[6]Outputs!E21 -> 45490.07026 | F117: =[6]Outputs!F21 -> 30847.48545 | G117: =[6]Outputs!G21 -> 166684.3638
A118: BBAR before tax, for the BBAR period ending 2024 | C118: =[6]Outputs!C22 -> 5363.256666 | D118: =[6]Outputs!D22 -> 69649.00803 | E118: =[6]Outputs!E22 -> 64787.59645 | F118: =[6]Outputs!F22 -> 33349.69237 | G118: =[6]Outputs!G22 -> 176165.8429
A119: BBAR before tax, for the BBAR period ending 2025 | C119: =[6]Outputs!C23 -> 5545.134442 | D119: =[6]Outputs!D23 -> 71575.60601 | E119: =[6]Outputs!E23 -> 66067.98336 | F119: =[6]Outputs!F23 -> 34820.13363 | G119: =[6]Outputs!G23 -> 180670.6239
A120: BBAR before tax, for the BBAR period ending 2026 | C120: =[6]Outputs!C24 -> 5684.219097 | D120: =[6]Outputs!D24 -> 73596.86292 | E120: =[6]Outputs!E24 -> 67141.72739 | F120: =[6]Outputs!F24 -> 36269.39439 | G120: =[6]Outputs!G24 -> 185835.5969
A121: ΔD | C121: =[6]Outputs!C25 -> 1.001855153 | D121: =[6]Outputs!D25 -> 1.03050371 | E121: =[6]Outputs!E25 -> 1.029706844 | F121: =[6]Outputs!F25 -> 0.9865315951 | G121: N/A
A122: ANR 2022 (applicable X-factor) | C122: =[6]Outputs!C26 -> 5202.644496 | D122: =[6]Outputs!D26 -> 63762.69618 | E122: =[6]Outputs!E26 -> 59606.56221 | F122: =[6]Outputs!F26 -> 33065.99919 | G122: N/A
A123: source: 2022 Draft, Financial Model, 'Outputs' sheet, using an alternative X-factor of 0 in row 42 of the inputs sheet
A126: 2022 Draft DPP Reset Operating Expenditure Allowance for 2023
C127: GasNet | D127: Powerco | E127: Vector | F127: First Gas distribution | G127: First Gas Transmission
A128: Operating expenditure in year ending 2023 | C128: 2030.51322 | D128: 18350 | E128: 14227.75 | F128: 9460.172589 | G128: 49274
A129: source: 2022 Draft, Expenditure Model, 'Allowance vs Actuals' sheet, using the year-end adjusted allowances
A131: 2022 Draft DPP Reset Capital Expenditure Allowance for 2023
C132: GasNet | D132: PowerCo | E132: Vector | F132: First Gas Distribution | G132: First Gas Transmission
A133: Capital expenditure in year ending 2023 | C133: 888.7230001 | D133: 16872.16864 | E133: 5662.147083 | F133: 12890.53495 | G133: 52148.56991
A134: source: 2022 Draft, Expenditure Model, 'Allowance vs Actuals' sheet, using the year-end adjusted allowances
A136: 2017 DPP Operating Expenditure Allowance for 2022
C137: GasNet | D137: Powerco | E137: Vector | F137: First Gas Distribution | G137: First Gas Transmission
A138: Opex for the year ending 2022 | C138: 1782.748816 | D138: 18435.52952 | E138: 13208.87932 | F138: 7883.421218 | G138: 47131.84076
A139: source: 2022 Draft, Expenditure Model, 'Allowance vs Actuals' sheet, using the year-end adjusted allowances
A141: 2017 DPP Capital Expenditure Allowance for 2022
C142: GasNet | D142: Powerco | E142: Vector | F142: First Gas Distribution | G142: First Gas Transmission
A143: Capex for the year ending 2022 | C143: 892.5384701 | D143: 14350.82414 | E143: 18641.42915 | F143: 11805.55703 | G143: 24115.05082
A144: source: 2022 Draft, Expenditure Model, 'Allowance vs Actuals' sheet, using the year-end adjusted allowances
A147: 2022 Final DPP Reset CPRG and CPI
A148: CPRG (Pricing years) | D148: 2017 | E148: 2018 | F148: 2019 | G148: 2020 | H148: 2021 | I148: 2022
A149: GasNet | D149: =TRANSPOSE([1]Output!$B$3:$E$8) -> 0.001109051256 | E149: 0.0007452748755 | F149: 0.0005188765247 | G149: 0.0003057413528 | H149: 0.0001053972105 | I149: -8.265491881e-05
A150: Powerco | D150: 0.01534142993 | E150: 0.01493318336 | F150: 0.01427319055 | G150: 0.01361786665 | H150: 0.01296971087 | I150: 0.01233841492
A151: Vector | D151: 0.01378072768 | E151: 0.01570962614 | F151: 0.01050317518 | G151: 0.01032279208 | H151: 0.01014377539 | I151: 0.01000883144
A152: First Gas Dist | D152: -0.006621538359 | E152: -0.006892505495 | F152: -0.007156717435 | G152: -0.007413905448 | H152: -0.007663666789 | I152: -0.007905796045
A153: First Gas Trans | D153: 0 | E153: 0 | F153: 0 | G153: 0 | H153: 0 | I153: 0
A154: Source: 2022 Final, Constant price revenue growth Model, 'Output' sheet
A156: WACC (67th percentile) | B156: 0.0533
A158: CPI Forecasts | B158: 2015 | C158: 2016 | D158: 2017 | E158: 2018 | F158: 2019 | G158: 2020 | H158: 2021 | I158: 2022
A159: Forecast changes in CPI used for revaluations, March year-ends | B159: =[2]Output!B5 -> 0 | C159: =[2]Output!C5 -> 0 | D159: =[2]Output!D5 -> 45657 | E159: =[2]Output!E5 -> 0 | F159: =[2]Output!F5 -> 0 | G159: =[2]Output!G5 -> 0 | H159: =[2]Output!H5 -> 0 | I159: =[2]Output!I5 -> 0
A160: Forecast changes in CPI used for revaluations, June year-ends | B160: =[2]Output!B6 -> 0 | C160: =[2]Output!C6 -> 0 | D160: =[2]Output!D6 -> 0 | E160: =[2]Output!E6 -> 0 | F160: =[2]Output!F6 -> 0 | G160: =[2]Output!G6 -> 0 | H160: =[2]Output!H6 -> 0 | I160: =[2]Output!I6 -> 0
A161: Forecast changes in CPI used for revaluations, September year-ends | B161: =[2]Output!B7 -> 2016 | C161: =[2]Output!C7 -> 2017 | D161: =[2]Output!D7 -> 2018 | E161: =[2]Output!E7 -> 2019 | F161: =[2]Output!F7 -> 2020 | G161: =[2]Output!G7 -> 2021 | H161: =[2]Output!H7 -> 2022 | I161: =[2]Output!I7 -> 2023
A162: Forecast changes in CPI used for revaluations, December year-ends | B162: =[2]Output!B8 -> 0 | C162: =[2]Output!C8 -> 0.01729399797 | D162: =[2]Output!D8 -> 0.015 | E162: =[2]Output!E8 -> 0.01674876847 | F162: =[2]Output!F8 -> 0.01453488372 | G162: =[2]Output!G8 -> 0.03342884432 | H162: =[2]Output!H8 -> 0.052 | I162: =[2]Output!I8 -> 0.025
A163: Forecast changes in the CPI element of the price path, lagged | B163: =[2]Output!B9 -> 0.004073319756 | C163: =[2]Output!C9 -> 0.01926977688 | D163: =[2]Output!D9 -> 0.01890547264 | E163: =[2]Output!E9 -> 0.0146484375 | F163: =[2]Output!F9 -> 0.01443695861 | G163: =[2]Output!G9 -> 0.04933586338 | H163: =[2]Output!H9 -> 0.04 | I163: =[2]Output!I9 -> 0.023
A164: Forecast changes in the CPI element of the price path, not lagged | B164: =[2]Output!B10 -> 0 | C164: =[2]Output!C10 -> 0 | D164: =[2]Output!D10 -> 0.0107224917 | E164: =[2]Output!E10 -> 0.01591310937 | F164: =[2]Output!F10 -> 0.01690701144 | G164: =[2]Output!G10 -> 0.01882640587 | H164: =[2]Output!H10 -> 0.01463882889 | I164: =[2]Output!I10 -> 0.04925236518
A165: source: 2017 Final, CPI Model, 'Output' sheet
A167: 2017 Final DPP Reset Financial Outputs
C168: GasNet | D168: Powerco | E168: Vector | F168: First Gas Distribution | G168: First Gas Transmission
A169: Supplier number | C169: 1 | D169: 2 | E169: 3 | F169: 4 | G169: 5
A170: PV of BBAR at 30 September 2017 | C170: =[3]Outputs!C9 -> 19288.02251 | D170: =[3]Outputs!D9 -> 247968.4458 | E170: =[3]Outputs!E9 -> 230462.7807 | F170: =[3]Outputs!F9 -> 119361.9568 | G170: =[3]Outputs!G9 -> 626669.1958
A171: Starting price for industry-wide X factor | C171: =[3]Outputs!C10 -> 5212.296196 | D171: =[3]Outputs!D10 -> 65707.69495 | E171: =[3]Outputs!E10 -> 61377.28504 | F171: =[3]Outputs!F10 -> 32620.65293 | G171: =[3]Outputs!G10 -> 171803.8482
A172: Starting price for applicable X factor | C172: =[3]Outputs!C11 -> 4838.789014 | D172: =[3]Outputs!D11 -> 58875.07467 | E172: =[3]Outputs!E11 -> 56856.01745 | F172: =[3]Outputs!F11 -> 28249.96793 | G172: =[3]Outputs!G11 -> 148761.8512
A173: PV at 30 September 2017 of MAR (applicable X) | C173: =[3]Outputs!C12 -> 19288.02251 | D173: =[3]Outputs!D12 -> 247968.4458 | E173: =[3]Outputs!E12 -> 230462.7807 | F173: =[3]Outputs!F12 -> 119361.9568 | G173: =[3]Outputs!G12 -> 626669.1958
A174: MAR (industry-wide X factor), pricing period commencing 2017 | C174: =[3]Outputs!C13 -> 5212.296196 | D174: =[3]Outputs!D13 -> 65707.69495 | E174: =[3]Outputs!E13 -> 61377.28504 | F174: =[3]Outputs!F13 -> 32620.65293 | G174: =[3]Outputs!G13 -> 171803.8482
A175: MAR (industry-wide X factor), pricing period commencing 2018 | C175: =[3]Outputs!C14 -> 5415.055515 | D175: =[3]Outputs!D14 -> 69202.1708 | E175: =[3]Outputs!E14 -> 64401.19054 | F175: =[3]Outputs!F14 -> 33629.61464 | G175: =[3]Outputs!G14 -> 175368.3593
A176: MAR (industry-wide X factor), pricing period commencing 2019 | C176: =[3]Outputs!C15 -> 5538.521162 | D176: =[3]Outputs!D15 -> 71721.9551 | E176: =[3]Outputs!E15 -> 66529.18311 | F176: =[3]Outputs!F15 -> 34130.93785 | G176: =[3]Outputs!G15 -> 178875.7264
A177: MAR (industry-wide X factor), pricing period commencing 2020 | C177: =[3]Outputs!C16 -> 5651.259102 | D177: =[3]Outputs!D16 -> 74123.20822 | E177: =[3]Outputs!E16 -> 68564.76819 | F177: =[3]Outputs!F16 -> 34555.14693 | G177: =[3]Outputs!G16 -> 182453.241
A178: MAR (industry-wide X factor), pricing period commencing 2021 | C178: =[3]Outputs!C17 -> 4838.789014 | D178: =[3]Outputs!D17 -> 58875.07467 | E178: =[3]Outputs!E17 -> 56856.01745 | F178: =[3]Outputs!F17 -> 28249.96793 | G178: =[3]Outputs!G17 -> 148761.8512
A179: MAR (applicable X factor), pricing period commencing 2017 | C179: =[3]Outputs!C18 -> 5284.127747 | D179: =[3]Outputs!D18 -> 66647.73149 | E179: =[3]Outputs!E18 -> 62771.43975 | F179: =[3]Outputs!F18 -> 32036.11807 | G179: =[3]Outputs!G18 -> 167033.1267
A180: MAR (applicable X factor), pricing period commencing 2018 | C180: =[3]Outputs!C19 -> 5681.029058 | D180: =[3]Outputs!D19 -> 74245.16702 | E180: =[3]Outputs!E19 -> 68230.69846 | F180: =[3]Outputs!F19 -> 35765.0554 | G180: =[3]Outputs!G19 -> 187411.1682
A181: MAR (applicable X factor), pricing period commencing 2019 | C181: =[3]Outputs!C20 -> 6093.140702 | D181: =[3]Outputs!D20 -> 82474.69009 | E181: =[3]Outputs!E20 -> 73989.15549 | F181: =[3]Outputs!F20 -> 39830.53218 | G181: =[3]Outputs!G20 -> 210275.3307
A182: MAR (applicable X factor), pricing period commencing 2020 | C182: =[3]Outputs!C21 -> 3776.986434 | D182: =[3]Outputs!D21 -> 65882.1041 | E182: =[3]Outputs!E21 -> 45490.07026 | F182: =[3]Outputs!F21 -> 30847.48545 | G182: =[3]Outputs!G21 -> 166684.3638
A183: MAR (applicable X factor), pricing period commencing 2021 | C183: =[3]Outputs!C22 -> 5363.256666 | D183: =[3]Outputs!D22 -> 69649.00803 | E183: =[3]Outputs!E22 -> 64787.59645 | F183: =[3]Outputs!F22 -> 33349.69237 | G183: =[3]Outputs!G22 -> 176165.8429
A184: BBAR before tax, for the BBAR period commencing 2017 | C184: =[3]Outputs!C23 -> 5545.134442 | D184: =[3]Outputs!D23 -> 71575.60601 | E184: =[3]Outputs!E23 -> 66067.98336 | F184: =[3]Outputs!F23 -> 34820.13363 | G184: =[3]Outputs!G23 -> 180670.6239
A185: BBAR before tax, for the BBAR period commencing 2018 | C185: =[3]Outputs!C24 -> 5684.219097 | D185: =[3]Outputs!D24 -> 73596.86292 | E185: =[3]Outputs!E24 -> 67141.72739 | F185: =[3]Outputs!F24 -> 36269.39439 | G185: =[3]Outputs!G24 -> 185835.5969
A186: BBAR before tax, for the BBAR period commencing 2019 | C186: =[3]Outputs!C25 -> 1.001855153 | D186: =[3]Outputs!D25 -> 1.03050371 | E186: =[3]Outputs!E25 -> 1.029706844 | F186: =[3]Outputs!F25 -> 0.9865315951 | G186: =[3]Outputs!G25 -> 
A187: BBAR before tax, for the BBAR period commencing 2020 | C187: =[3]Outputs!C26 -> 4829.828944 | D187: =[3]Outputs!D26 -> 57132.32676 | E187: =[3]Outputs!E26 -> 55215.73231 | F187: =[3]Outputs!F26 -> 28635.64439 | G187: =[3]Outputs!G26 -> 
A188: BBAR before tax, for the BBAR period commencing 2021 | C188: =[3]Outputs!C27 -> 0 | D188: =[3]Outputs!D27 -> 0 | E188: =[3]Outputs!E27 -> 0 | F188: =[3]Outputs!F27 -> 0 | G188: =[3]Outputs!G27 -> 0
A189: BBAR before tax, for the BBAR period commencing 2022 | C189: =[3]Outputs!C28 -> 4383.998268 | D189: =[3]Outputs!D28 -> 51435.56862 | E189: =[3]Outputs!E28 -> 50702.2772 | F189: =[3]Outputs!F28 -> 24646.15131 | G189: =[3]Outputs!G28 -> 131623.3864
A190: ΔD | C190: =[3]Outputs!C29 -> 4838.789014 | D190: =[3]Outputs!D29 -> 58875.07467 | E190: =[3]Outputs!E29 -> 56856.01745 | F190: =[3]Outputs!F29 -> 28249.96793 | G190: =[3]Outputs!G29 -> 148761.8512
A191: ANR 2016 (applicable X-factor) | C191: =[3]Outputs!C30 -> 5284.127747 | D191: =[3]Outputs!D30 -> 66647.73149 | E191: =[3]Outputs!E30 -> 62771.43975 | F191: =[3]Outputs!F30 -> 32036.11807 | G191: =[3]Outputs!G30 -> 167033.1267
A192: source: 2017 Final, Financial Model, 'Outputs' sheet
A194: 2022 Draft DPP Reset Financial Outputs (using 2022 Final WACC 5.33%, cost of debt 3.1%) | K194: TH note to self: This just updates the draft financial model with the final WACC. As we're not yet at the final decision, have copied it from the table above in rows 39 onwards
C195: GasNet | D195: Powerco | E195: Vector | F195: First Gas Distribution | G195: First Gas Transmission
A196: Supplier number | C196: 1 | D196: 2 | E196: 3 | F196: 4 | G196: 5
A197: PV of BBAR at 30 September 2022 | C197: =C36 -> 19288.02251 | D197: 247968.4458 | E197: 230462.7807 | F197: 119361.9568 | G197: 626669.1958
A198: Starting price for industry-wide X factor | C198: 5212.296196 | D198: 65707.69495 | E198: 61377.28504 | F198: 32620.65293 | G198: 171803.8482
A199: Starting price for applicable X factor | C199: 4838.789014 | D199: 58875.07467 | E199: 56856.01745 | F199: 28249.96793 | G199: 148761.8512
A200: PV at 30 September 2022 of MAR (applicable X) | C200: 19288.02251 | D200: 247968.4458 | E200: 230462.7807 | F200: 119361.9568 | G200: 626669.1958
A201: MAR (industry-wide X factor), pricing period ending 2023 | C201: 5212.296196 | D201: 65707.69495 | E201: 61377.28504 | F201: 32620.65293 | G201: 171803.8482
A202: MAR (industry-wide X factor), pricing period ending 2024 | C202: 5415.055515 | D202: 69202.1708 | E202: 64401.19054 | F202: 33629.61464 | G202: 175368.3593
A203: MAR (industry-wide X factor), pricing period ending 2025 | C203: 5538.521162 | D203: 71721.9551 | E203: 66529.18311 | F203: 34130.93785 | G203: 178875.7264
A204: MAR (industry-wide X factor), pricing period ending 2026 | C204: 5651.259102 | D204: 74123.20822 | E204: 68564.76819 | F204: 34555.14693 | G204: 182453.241
A205: MAR (industry-wide X factor), pricing period commencing 2021 | C205: =#REF! ->  | D205: =#REF! ->  | E205: =#REF! ->  | F205: =#REF! ->  | G205: =#REF! -> 
A206: MAR (applicable X factor), pricing period ending 2023 | C206: =C44 -> 4838.789014 | D206: 58875.07467 | E206: 56856.01745 | F206: 28249.96793 | G206: 148761.8512
A207: MAR (applicable X factor), pricing period ending 2024 | C207: 5284.127747 | D207: 66647.73149 | E207: 62771.43975 | F207: 32036.11807 | G207: 167033.1267
A208: MAR (applicable X factor), pricing period ending 2025 | C208: 5681.029058 | D208: 74245.16702 | E208: 68230.69846 | F208: 35765.0554 | G208: 187411.1682
A209: MAR (applicable X factor), pricing period ending 2026 | C209: 6093.140702 | D209: 82474.69009 | E209: 73989.15549 | F209: 39830.53218 | G209: 210275.3307
A210: MAR (applicable X factor), pricing period commencing 2021 | C210: =#REF! ->  | D210: =#REF! ->  | E210: =#REF! ->  | F210: =#REF! ->  | G210: =#REF! -> 
A211: BBAR before tax, for the BBAR period ending 2023 | C211: =C48 -> 3776.986434 | D211: 65882.1041 | E211: 45490.07026 | F211: 30847.48545 | G211: 166684.3638
A212: BBAR before tax, for the BBAR period ending 2024 | C212: 5363.256666 | D212: 69649.00803 | E212: 64787.59645 | F212: 33349.69237 | G212: 176165.8429
A213: BBAR before tax, for the BBAR period ending 2025 | C213: 5545.134442 | D213: 71575.60601 | E213: 66067.98336 | F213: 34820.13363 | G213: 180670.6239
A214: BBAR before tax, for the BBAR period ending 2026 | C214: 5684.219097 | D214: 73596.86292 | E214: 67141.72739 | F214: 36269.39439 | G214: 185835.5969
A215: BBAR before tax, for the BBAR period commencing 2021 | C215: =#REF! ->  | D215: =#REF! ->  | E215: =#REF! ->  | F215: =#REF! ->  | G215: =#REF! -> 
A216: BBAR before tax, for the BBAR period commencing 2022 | C216: =#REF! ->  | D216: =#REF! ->  | E216: =#REF! ->  | F216: =#REF! ->  | G216: =#REF! -> 
A217: ΔD | C217: =C52 -> 1.001855153 | D217: 1.03050371 | E217: 1.029706844 | F217: 0.9865315951 | G217: N/A
A218: ANR 2022 (applicable X-factor) | C218: 4829.828944 | D218: 57132.32676 | E218: 55215.73231 | F218: 28635.64439 | G218: N/A
A219: source: 2017 Draft, Financial Model, 'Outputs' sheet, using 2017 final values for WACC (6.41%) and cost of debt (4.76%)
A221: 2022 Draft DPP Reset Financial Outputs (using 2022 Final Opex allowances) | K221: TH Note to self: This uses the draft financial model with final opex allowances. As we're not at this stage yet, have used values from above in rows 148 - 170
C222: GasNet | D222: Powerco | E222: Vector | F222: First Gas Distribution | G222: First Gas Transmission
... 102 more rows

Sheet Rolled over and Reset Prices
A1: Rolled over and Draft Reset Prices
A3: GasNet
A4: Year ending | B4: 2022 | C4: =B4+1 -> 2023 | D4: =C4+1 -> 2024 | E4: 2025 | F4: 2026 | G4: Starting Price | H4: NPV value
A5: MAR Y/C 2021 | B5: =Inputs!C6 -> 4383.998268
A6: CPI | C6: =Inputs!E27 -> 0.04925236518 | D6: =Inputs!F27 -> 0.03836140997 | E6: =Inputs!G27 -> 0.02248782285 | F6: =Inputs!H27 -> 0.02024771097
A7: CPRG | B7: =Inputs!D17 -> 0.001109051256 | C7: =Inputs!E17 -> 0.0007452748755 | D7: =Inputs!F17 -> 0.0005188765247 | E7: =Inputs!G17 -> 0.0003057413528 | F7: =Inputs!H17 -> 0.0001053972105
A8: WACC | B8: =Inputs!B31 -> 0.0607
A9: MAR from Draft Reset financial model | C9: =Inputs!C44 -> 4838.789014 | D9: =Inputs!C45 -> 5284.127747 | E9: =Inputs!C46 -> 5681.029058 | F9: =Inputs!C47 -> 6093.140702 | G9: =C9 -> 4838.789014 | H9: =C9+NPV(B8,D9:F9) -> 19975.74624
A10: Rolled over price path | B10: =B5 -> 4383.998268 | C10: =B10*(1+C6)*(1+C7) -> 4603.348757 | D10: =C10*(1+D6)*(1+D7) -> 4782.419904 | E10: =D10*(1+E6)*(1+E7) -> 4891.461181 | F10: =E10*(1+F6)*(1+F7) -> 4991.028058 | G10: =C10 -> 4603.348757 | H10: =C10+NPV(B8,D10:F10) -> 17641.99945
A11: Effect of moving from Draft Reset to rollover | G11: =(G9/G10)-1 -> 0.05114543129 | H11: =(H9/H10)-1 -> 0.1322835769
A13: Powerco
A14: Year ending | B14: =B4 -> 2022 | C14: =C4 -> 2023 | D14: =D4 -> 2024 | E14: =E4 -> 2025 | F14: =F4 -> 2026 | G14: Starting Price | H14: NPV value
A15: MAR Y/C 2021 | B15: =Inputs!C7 -> 51435.56862
A16: CPI | C16: =Inputs!E27 -> 0.04925236518 | D16: =Inputs!F27 -> 0.03836140997 | E16: =Inputs!G27 -> 0.02248782285 | F16: =Inputs!H27 -> 0.02024771097
A17: CPRG | B17: =Inputs!D18 -> 0.01534142993 | C17: =Inputs!E18 -> 0.01493318336 | D17: =Inputs!F18 -> 0.01427319055 | E17: =Inputs!G18 -> 0.01361786665 | F17: =Inputs!H18 -> 0.01296971087
A18: WACC | B18: =Inputs!B31 -> 0.0607
A19: MAR from Draft Reset financial model | C19: =Inputs!D44 -> 58875.07467 | D19: =Inputs!D45 -> 66647.73149 | E19: =Inputs!D46 -> 74245.16702 | F19: =Inputs!D47 -> 82474.69009 | G19: =C19 -> 58875.07467 | H19: =C19+NPV(B18,D19:F19) -> 256809.8801
A20: Rolled over price path | B20: =B15 -> 51435.56862 | C20: =B20*(1+C16)*(1+C17) -> 54774.81939 | D20: =C20*(1+D16)*(1+D17) -> 57687.86151 | E20: =D20*(1+E16)*(1+E17) -> 59788.38764 | F20: =E20*(1+F16)*(1+F17) -> 61790.10458 | G20: =C20 -> 54774.81939 | H20: =C20+NPV(B18,D20:F20) -> 214080.1745
A21: Effect of moving from Draft Reset to rollover | G21: =(G19/G20)-1 -> 0.07485657325 | H21: =(H19/H20)-1 -> 0.1995967433
A23: Vector
A24: Year ending | B24: =B14 -> 2022 | C24: =C14 -> 2023 | D24: =D14 -> 2024 | E24: =E14 -> 2025 | F24: =F14 -> 2026 | G24: Starting Price | H24: NPV value
A25: MAR Y/C 2021 | B25: =Inputs!C8 -> 50702.2772
A26: CPI | C26: =Inputs!E27 -> 0.04925236518 | D26: =Inputs!F27 -> 0.03836140997 | E26: =Inputs!G27 -> 0.02248782285 | F26: =Inputs!H27 -> 0.02024771097
A27: CPRG | B27: =Inputs!D19 -> 0.01378072768 | C27: =Inputs!E19 -> 0.01570962614 | D27: =Inputs!F19 -> 0.01050317518 | E27: =Inputs!G19 -> 0.01032279208 | F27: =Inputs!H19 -> 0.01014377539
A28: WACC | B28: =Inputs!B31 -> 0.0607
A29: MAR from Draft Reset financial model | C29: =Inputs!E44 -> 56856.01745 | D29: =Inputs!E45 -> 62771.43975 | E29: =Inputs!E46 -> 68230.69846 | F29: =Inputs!E47 -> 73989.15549 | G29: =C29 -> 56856.01745 | H29: =C29+NPV(B28,D29:F29) -> 238680.0421
A30: Rolled over price path | B30: =B25 -> 50702.2772 | C30: =B30*(1+C26)*(1+C27) -> 54035.22828 | D30: =C30*(1+D26)*(1+D27) -> 56697.40898 | E30: =D30*(1+E26)*(1+E27) -> 58570.84741 | F30: =E30*(1+F26)*(1+F27) -> 60362.93228 | G30: =C30 -> 54035.22828 | H30: =C30+NPV(B28,D30:F30) -> 210128.7235
A31: Effect of moving from Draft Reset to rollover | G31: =(G29/G30)-1 -> 0.05220278071 | H31: =(H29/H30)-1 -> 0.1358753724
A33: First Gas Distribution
A34: Year ending | B34: =B24 -> 2022 | C34: =C24 -> 2023 | D34: =D24 -> 2024 | E34: =E24 -> 2025 | F34: =F24 -> 2026 | G34: Starting Price | H34: NPV value
A35: MAR Y/C 2021 | B35: =Inputs!C9 -> 24646.15131
A36: CPI | C36: =Inputs!E27 -> 0.04925236518 | D36: =Inputs!F27 -> 0.03836140997 | E36: =Inputs!G27 -> 0.02248782285 | F36: =Inputs!H27 -> 0.02024771097
A37: CPRG | B37: =Inputs!D20 -> -0.006621538359 | C37: =Inputs!E20 -> -0.006892505495 | D37: =Inputs!F20 -> -0.007156717435 | E37: =Inputs!G20 -> -0.007413905448 | F37: =Inputs!H20 -> -0.007663666789
A38: WACC | B38: =Inputs!B31 -> 0.0607
A39: MAR from Draft Reset financial model | C39: =Inputs!F44 -> 28249.96793 | D39: =Inputs!F45 -> 32036.11807 | E39: =Inputs!F46 -> 35765.0554 | F39: =Inputs!F47 -> 39830.53218 | G39: =C39 -> 28249.96793 | H39: =C39+NPV(B38,D39:F39) -> 123617.8648
A40: Rolled over price path | B40: =B35 -> 24646.15131 | C40: =B40*(1+C36)*(1+C37) -> 25681.79214 | D40: =C40*(1+D36)*(1+D37) -> 26476.13384 | E40: =D40*(1+E36)*(1+E37) -> 26870.81872 | F40: =E40*(1+F36)*(1+F37) -> 27204.7927 | G40: =C40 -> 25681.79214 | H40: =C40+NPV(B38,D40:F40) -> 97322.64759
A41: Effect of moving from Draft Reset to rollover | G41: =(G39/G40)-1 -> 0.09999986707 | H41: =(H39/H40)-1 -> 0.2701860039
A43: First Gas Transmission
A44: Year ending | B44: =B34 -> 2022 | C44: =C34 -> 2023 | D44: 2024 | E44: 2025 | F44: 2026 | G44: Starting Price | H44: NPV value
A45: MAR Y/C 2021 | B45: =Inputs!C10 -> 131623.3864
A46: CPI | C46: =Inputs!E28 -> 0.02746210288 | D46: =Inputs!F28 -> 0.02074756236 | E46: =Inputs!G28 -> 0.02 | F46: =Inputs!H28 -> 0.02
A47: CPRG (0% used) | C47: 0 | D47: 0 | E47: 0 | F47: 0
A48: WACC | B48: =Inputs!B31 -> 0.0607
A49: Price path from Draft Reset financial model | C49: =Inputs!G44 -> 148761.8512 | D49: =Inputs!G45 -> 167033.1267 | E49: =Inputs!G46 -> 187411.1682 | F49: =Inputs!G47 -> 210275.3307 | G49: =C49 -> 148761.8512 | H49: =C49+NPV(B48,D49:F49) -> 649013.3876
A50: Rolled over price path | B50: =B45 -> 131623.3864 | C50: =B50*(1+C46)*(1+C47) -> 135238.0414 | D50: =C50*(1+D46)*(1+D47) -> 138043.9011 | E50: =D50*(1+E46)*(1+E47) -> 140804.7791 | F50: =E50*(1+F46)*(1+F47) -> 143620.8747 | G50: =C50 -> 135238.0414 | H50: =C50+NPV(B48,D50:F50) -> 510880.8696
A51: Effect of moving from Draft Reset to rollover | G51: =(G49/G50)-1 -> 0.1000000422 | H51: =(H49/H50)-1 -> 0.2703810735

Sheet Impact of 2022 Reset
A1: Impact of 2022 Reset
A3: Draft Reset compared to Roll Over
A4: These tables are used to generate the Roll Over to Draft section in the Waterfall Chart
B6: Starting Price (MAR y/c 2022)
B7: Roll over | C7: Draft Reset | D7: Change
A8: GasNet | B8: ='Rolled over and Reset Prices'!C10 -> 4603.348757 | C8: ='Rolled over and Reset Prices'!C9 -> 4838.789014 | D8: =C8/B8-1 -> 0.05114543129
A9: Powerco | B9: ='Rolled over and Reset Prices'!C20 -> 54774.81939 | C9: ='Rolled over and Reset Prices'!C19 -> 58875.07467 | D9: =C9/B9-1 -> 0.07485657325
A10: Vector | B10: ='Rolled over and Reset Prices'!C30 -> 54035.22828 | C10: ='Rolled over and Reset Prices'!C29 -> 56856.01745 | D10: 0.05220278071
A11: First Gas Distribution | B11: ='Rolled over and Reset Prices'!C40 -> 25681.79214 | C11: ='Rolled over and Reset Prices'!C39 -> 28249.96793 | D11: 0.09999986707
A12: First Gas Transmission (MAR) | B12: ='Rolled over and Reset Prices'!C50 -> 135238.0414 | C12: ='Rolled over and Reset Prices'!C49 -> 148761.8512 | D12: 0.1000000422
A13: Industry Total | B13: =SUM(B8:B12) -> 274333.2299 | C13: =SUM(C8:C12) -> 297581.7003 | D13: 0.08474536737
B15: NPV ANR
B16: Roll over | C16: Draft Reset | D16: Change
A17: GasNet | B17: ='Rolled over and Reset Prices'!H10 -> 17641.99945 | C17: ='Rolled over and Reset Prices'!H9 -> 19975.74624 | D17: =C17/B17-1 -> 0.1322835769
A18: Powerco | B18: ='Rolled over and Reset Prices'!H20 -> 214080.1745 | C18: ='Rolled over and Reset Prices'!H19 -> 256809.8801 | D18: 0.1995967433
A19: Vector | B19: ='Rolled over and Reset Prices'!H30 -> 210128.7235 | C19: ='Rolled over and Reset Prices'!H29 -> 238680.0421 | D19: 0.1358753724
A20: First Gas Distribution | B20: ='Rolled over and Reset Prices'!H40 -> 97322.64759 | C20: ='Rolled over and Reset Prices'!H39 -> 123617.8648 | D20: 0.2701860039
A21: First Gas Transmission (MAR) | B21: ='Rolled over and Reset Prices'!H50 -> 510880.8696 | C21: ='Rolled over and Reset Prices'!H49 -> 649013.3876 | D21: 0.2703810735
A22: Industry Total | B22: =SUM(B17:B21) -> 1050054.415 | C22: =SUM(C17:C21) -> 1288096.921 | D22: 0.2266954006
A24: Draft Reset compared to Roll Over: WACC, Cost of Debt, and Leverage Change
B26: Starting Price (MAR)
B27: Rolled over Starting Price | C27: Draft decision | D27: WACC at 6.41%, cost of debt at 4.76%, leverage at 42% | E27: Impact of reset
A28: GasNet | B28: ='Rolled over and Reset Prices'!G10 -> 4603.348757 | C28: ='Rolled over and Reset Prices'!G9 -> 4838.789014 | D28: =Inputs!C67 -> 4912.646298 | E28: =C28-D28 -> -73.85728351
A29: Powerco | B29: ='Rolled over and Reset Prices'!G20 -> 54774.81939 | C29: ='Rolled over and Reset Prices'!G19 -> 58875.07467 | D29: =Inputs!D67 -> 60000.2746 | E29: =C29-D29 -> -1125.199937
A30: Vector | B30: ='Rolled over and Reset Prices'!G30 -> 54035.22828 | C30: ='Rolled over and Reset Prices'!G29 -> 56856.01745 | D30: =Inputs!E67 -> 58073.03392 | E30: -1217.016469
A31: First Gas Distribution | B31: ='Rolled over and Reset Prices'!G40 -> 25681.79214 | C31: ='Rolled over and Reset Prices'!G39 -> 28249.96793 | D31: =Inputs!F67 -> 28858.14698 | E31: -608.1790479
A32: First Gas Transmission (MAR) | B32: ='Rolled over and Reset Prices'!G50 -> 135238.0414 | C32: ='Rolled over and Reset Prices'!G49 -> 148761.8512 | D32: =Inputs!G67 -> 151532.558 | E32: -2770.70676
A33: Industry Total | B33: =SUM(B28:B32) -> 274333.2299 | C33: =SUM(C28:C32) -> 297581.7003 | D33: =SUM(D28:D32) -> 303376.6598 | E33: =C33-D33 -> -5794.959497
A35: Draft Reset compared to Roll Over: Opex allowances
B37: 2017 DPP Operating Expenditure Allowance for 2022 | C37: 2022 Draft DPP Reset Operating Expenditure Allowance for 2023 | D37: Impact of reset
A38: GasNet | B38: =Inputs!C138 -> 1782.748816 | C38: =Inputs!C128 -> 2030.51322 | D38: =C38-B38 -> 247.7644045
A39: Powerco | B39: =Inputs!D138 -> 18435.52952 | C39: =Inputs!D128 -> 18350 | D39: =C39-B39 -> -85.52952214
A40: Vector | B40: =Inputs!E138 -> 13208.87932 | C40: =Inputs!E128 -> 14227.75 | D40: 1018.870685
A41: First Gas Distribution | B41: =Inputs!F138 -> 7883.421218 | C41: =Inputs!F128 -> 9460.172589 | D41: 1576.751371
A42: First Gas Transmission | B42: =Inputs!G138 -> 47131.84076 | C42: =Inputs!G128 -> 49274 | D42: 2142.159242
A43: Industry Total | B43: =SUM(B38:B42) -> 88442.41963 | C43: =SUM(C38:C42) -> 93342.43581 | D43: 4900.01618
A45: Draft Reset compared to Roll Over: Capex allowances
B47: 2017 DPP Capital Expenditure Allowance for 2022 | C47: 2022 Draft DPP Reset Capital Expenditure Allowance for 2023 | D47: Impact of reset
A48: GasNet | B48: =Inputs!C143 -> 892.5384701 | C48: =Inputs!C133 -> 888.7230001 | D48: =C48-B48 -> -3.815470041
A49: PowerCo | B49: =Inputs!D143 -> 14350.82414 | C49: =Inputs!D133 -> 16872.16864 | D49: =C49-B49 -> 2521.344504
A50: Vector | B50: =Inputs!E143 -> 18641.42915 | C50: =Inputs!E133 -> 5662.147083 | D50: -12979.28206
A51: First Gas Distribution | B51: =Inputs!F143 -> 11805.55703 | C51: =Inputs!F133 -> 12890.53495 | D51: 1084.977915
A52: First Gas Transmission | B52: =Inputs!G143 -> 24115.05082 | C52: =Inputs!G133 -> 52148.56991 | D52: 28033.51909
A53: Industry Total | B53: =SUM(B48:B52) -> 69805.39961 | C53: =SUM(C48:C52) -> 88462.14358 | D53: 18656.74397
A55: Draft Reset: Accelerated depreciation
B56: 2022 Draft DPP Reset with no allowance made for accelerated depreciation (Starting price, MAR) | C56: 2022 Draft DPP Reset with accelerated depreciation, no smoothing (Starting price, MAR) | D56: Impact of accelerated depreciation
A57: GasNet | B57: =Inputs!C90 -> 4543.725582 | C57: =Inputs!C113 -> 5212.296196 | D57: =C57-B57 -> 668.5706143
A58: PowerCo | B58: =Inputs!D90 -> 61697.05595 | C58: =Inputs!D113 -> 65707.69495 | D58: =C58-B58 -> 4010.638999
A59: Vector | B59: =Inputs!E90 -> 50136.88637 | C59: =Inputs!E113 -> 61377.28504 | D59: 11240.39868
A60: First Gas Distribution | B60: =Inputs!F90 -> 30685.09575 | C60: =Inputs!F113 -> 32620.65293 | D60: 1935.557176
A61: First Gas Transmission | B61: =Inputs!G90 -> 149092.7884 | C61: =Inputs!G113 -> 171803.8482 | D61: 22711.05982
A62: Industry Total | B62: =SUM(B57:B61) -> 296155.552 | C62: =SUM(C57:C61) -> 336721.7773 | D62: 40566.22528
A64: Draft Reset: Smoothing
B65: 2022 Draft DPP Reset with accelerated depreciation, no smoothing | C65: 2022 Draft DPP Reset, with accelerated depreciation and smoothing | D65: Impact of smoothing
A66: GasNet | B66: =C57 -> 5212.296196 | C66: =Inputs!C44 -> 4838.789014 | D66: =C66-B66 -> -373.5071817
A67: PowerCo | B67: =C58 -> 65707.69495 | C67: =Inputs!D44 -> 58875.07467 | D67: =C67-B67 -> -6832.620284
A68: Vector | B68: 61377.28504 | C68: =Inputs!E44 -> 56856.01745 | D68: -4521.267593
A69: First Gas Distribution | B69: 32620.65293 | C69: =Inputs!F44 -> 28249.96793 | D69: -4370.68499
A70: First Gas Transmission | B70: 171803.8482 | C70: =Inputs!G44 -> 148761.8512 | D70: -23041.99697
A71: Industry Total | B71: 336721.7773 | C71: =SUM(C66:C70) -> 297581.7003 | D71: -39140.07701
A76: iii) Final Reset compared to Draft Reset | E76: HERE ONWARDS COMPARES DRAFT TO FINAL, UNNECESSARY UNTIL WE ARE IN THE FINAL STAGE
A77: These tables are used to generate the Draft to Final section in the Waterfall Chart
B79: Starting Price (ANR 2017)
B80: Final Reset | C80: Draft Reset | D80: Change
A81: GasNet | B81: ='Rolled over and Reset Prices'!#REF! ->  | C81: =C8 -> 4838.789014 | D81: =B81/C81-1 -> 
A82: Powerco | B82: ='Rolled over and Reset Prices'!#REF! ->  | C82: =C9 -> 58875.07467
A83: Vector | B83: ='Rolled over and Reset Prices'!#REF! ->  | C83: =C10 -> 56856.01745
A84: First Gas Distribution | B84: ='Rolled over and Reset Prices'!#REF! ->  | C84: =C11 -> 28249.96793
A85: First Gas Transmission (MAR) | B85: ='Rolled over and Reset Prices'!#REF! ->  | C85: =C12 -> 148761.8512
A86: Industry Total | B86: =SUM(B81:B85) ->  | C86: =SUM(C81:C85) -> 297581.7003
B88: NPV ANR
B89: Final Reset | C89: Draft Reset | D89: Change
A90: GasNet | B90: ='Rolled over and Reset Prices'!#REF! ->  | C90: =C17 -> 19975.74624 | D90: =B90/C90-1 -> 
A91: Powerco | B91: ='Rolled over and Reset Prices'!#REF! ->  | C91: =C18 -> 256809.8801
A92: Vector | B92: ='Rolled over and Reset Prices'!#REF! ->  | C92: =C19 -> 238680.0421
A93: First Gas Distribution | B93: ='Rolled over and Reset Prices'!#REF! ->  | C93: =C20 -> 123617.8648
A94: First Gas Transmission (MAR) | B94: ='Rolled over and Reset Prices'!#REF! ->  | C94: =C21 -> 649013.3876
A95: Industry Total | B95: =SUM(B90:B94) ->  | C95: =SUM(C90:C94) -> 1288096.921
A97: Final Reset compared to Draft Reset: WACC, Cost of Debt
B99: Starting Price (ANR)
B100: Final Reset | C100: Draft Reset | D100: WACC at 6.43%, cost of debt at 4.79% | E100: Impact of Final Decision | F100: Impact of WACC, cost of debt
A101: GasNet | B101: =B81 ->  | C101: =C28 -> 4838.789014 | D101: =Inputs!C218 -> 4829.828944 | E101: =C101/B101-1 ->  | F101: =D101/B101-1 -> 
A102: Powerco | B102: =B82 ->  | C102: =C29 -> 58875.07467 | D102: =Inputs!D218 -> 57132.32676
A103: Vector | B103: =B83 ->  | C103: =C30 -> 56856.01745 | D103: =Inputs!E218 -> 55215.73231
A104: First Gas Distribution | B104: =B84 ->  | C104: =C31 -> 28249.96793 | D104: =Inputs!F218 -> 28635.64439
A105: First Gas Transmission (MAR) | B105: =B85 ->  | C105: =C32 -> 148761.8512 | D105: =Inputs!G201 -> 171803.8482
A106: Industry Total | B106: =SUM(B101:B105) ->  | C106: =SUM(C101:C105) -> 297581.7003 | D106: =SUM(D101:D105) -> 317617.3806
A108: Final Reset compared to Draft Reset: Opex Allowances
B110: Starting Price (ANR)
B111: Final Reset | C111: Draft Reset | D111: Final Opex allowances | E111: Impact of Final Decision | F111: Impact of Final Opex allowances
A112: GasNet | B112: =B81 ->  | C112: =C28 -> 4838.789014 | D112: =Inputs!C245 -> 4829.828944 | E112: =C112/B112-1 ->  | F112: =D112/B112-1 -> 
A113: Powerco | B113: =B82 ->  | C113: =C29 -> 58875.07467 | D113: =Inputs!D245 -> 57132.32676
A114: Vector | B114: =B83 ->  | C114: =C30 -> 56856.01745 | D114: =Inputs!E245 -> 55215.73231
A115: First Gas Distribution | C115: =C31 -> 28249.96793 | D115: =Inputs!F245 -> 28635.64439
A116: First Gas Transmission (MAR) | C116: =C32 -> 148761.8512 | D116: =Inputs!G228 -> 171803.8482
A117: Industry Total | B117: =SUM(B112:B116) ->  | C117: =SUM(C112:C116) -> 297581.7003 | D117: =SUM(D112:D116) -> 317617.3806
A119: Final Reset compared to Draft Reset: Capex Allowances
B121: Starting Price (ANR)
B122: Final Reset | C122: Draft Reset | D122: Final Capex allowances | E122: Impact of Final Decision | F122: Impact of Final Capex allowances
A123: GasNet | B123: =B81 ->  | C123: =C28 -> 4838.789014 | D123: =Inputs!C272 -> 4829.828944 | E123: =C123/B123-1 ->  | F123: =D123/B123-1 -> 
A124: Powerco | B124: =B82 ->  | C124: =C29 -> 58875.07467 | D124: =Inputs!D272 -> 57132.32676
A125: Vector | C125: =C30 -> 56856.01745 | D125: =Inputs!E272 -> 55215.73231
A126: First Gas Distribution | C126: =C31 -> 28249.96793 | D126: =Inputs!F272 -> 28635.64439
A127: First Gas Transmission (MAR) | C127: =C32 -> 148761.8512 | D127: =Inputs!G255 -> 171803.8482
A128: Industry Total | B128: =SUM(B123:B127) ->  | C128: =SUM(C123:C127) -> 297581.7003 | D128: =SUM(D123:D127) -> 317617.3806
A130: Final Reset compared to Draft Reset: CPI Forecast
B132: Starting Price (ANR)
B133: Final Reset | C133: Draft Reset | D133: Final CPI forecast | E133: Impact of Final Decision | F133: Impact of Final CPI
A134: GasNet | B134: =B81 ->  | C134: =C28 -> 4838.789014 | D134: =Inputs!C299 -> 4829.828944 | E134: =C134/B134-1 ->  | F134: =D134/B134-1 -> 
A135: Powerco | B135: =B82 ->  | C135: =C29 -> 58875.07467 | D135: =Inputs!D299 -> 57132.32676
A136: Vector | C136: =C30 -> 56856.01745 | D136: =Inputs!E299 -> 55215.73231
A137: First Gas Distribution | C137: =C31 -> 28249.96793 | D137: =Inputs!F299 -> 28635.64439
A138: First Gas Transmission (MAR) | C138: =C32 -> 148761.8512 | D138: =Inputs!G282 -> 171803.8482
A139: Industry Total | B139: =SUM(B134:B138) ->  | C139: =SUM(C134:C138) -> 297581.7003 | D139: =SUM(D134:D138) -> 317617.3806

Sheet Waterfall Chart for Final
A1: Figures for Waterfall Chart
B4: Cumulative | C4: Incremental | E4: Notes
A6: Rolled over starting price | B6: ='Impact of 2022 Reset'!B13 -> 274333.2299
A7: WACC | B7: =B6-C7 -> 280128.1894 | C7: ='Impact of 2022 Reset'!E33 -> -5794.959497
A8: Opex | B8: =B7-C8 -> 275228.1733 | C8: ='Impact of 2022 Reset'!D43 -> 4900.01618
A9: Capex | B9: =B8-C9 -> 256571.4293 | C9: ='Impact of 2022 Reset'!D53 -> 18656.74397
A10: Accelerated depreciation | B10: =B9-C10 -> 216005.204 | C10: ='Impact of 2022 Reset'!D62 -> 40566.22528
A11: Smoothing | B11: =B10-C11 -> 255145.281 | C11: ='Impact of 2022 Reset'!D71 -> -39140.07701
A12: Other | B12: =B8-C12 -> 271167.6518 | C12: =-(B6-B13)-C7-C8-C9-C10-C11 -> 4060.521428 | E12: calculated as the residual (representing all other changes)
A13: Draft Reset starting price | B13: ='Impact of 2022 Reset'!C13 -> 297581.7003

Sheet Reasons Paper Tables
A1: Reasons Paper Tables
A4: 1 | B4: Starting prices (net of pass-through and recoverable costs)
B5: Supplier | C5: Starting prices (MAR) | D5: Impact of reset on price/revenue cap (ANR)
B6: GasNet | C6: ='Impact of 2022 Reset'!C8/1000 -> 4.838789014 | D6: ='Impact of 2022 Reset'!D8 -> 0.05114543129
B7: Powerco | C7: ='Impact of 2022 Reset'!C9/1000 -> 58.87507467 | D7: ='Impact of 2022 Reset'!D9 -> 0.07485657325
B8: Vector | C8: ='Impact of 2022 Reset'!C10/1000 -> 56.85601745 | D8: ='Impact of 2022 Reset'!D10 -> 0.05220278071
B9: First Gas distribution | C9: ='Impact of 2022 Reset'!C11/1000 -> 28.24996793 | D9: ='Impact of 2022 Reset'!D11 -> 0.09999986707
B10: First Gas transmission | C10: ='Impact of 2022 Reset'!C12/1000 -> 148.7618512 | D10: ='Impact of 2022 Reset'!D12 -> 0.1000000422
B11: Industry total | C11: =SUM(C6:C10) -> 297.5817003 | D11: ='Impact of 2022 Reset'!D13 -> 0.08474536737
